fUST/lending_fUST_20250722
["ID","MTS","AMOUNT","RATE_DAILY","PERIOD"]
[374029838,1753187456358,-151.0,0.0002532,7]
[374029840,1753187456367,-151.0,0.0002532,7]
[374029842,1753187456376,-151.0,0.0002532,7]
[374029844,1753187456386,-151.0,0.0002532,7]
[374029846,1753187456395,-151.0,0.0002532,7]
[374029848,1753187456404,-151.0,0.0002532,7]
[374029850,1753187456414,-151.0,0.0002532,7]
[374029852,1753187456424,-151.0,0.0002532,7]
[374029862,1753187456512,-151.0,0.0002532,7]
[374029865,1753187456522,-151.0,0.0002532,7]
[374029866,1753187456532,-151.0,0.0002532,7]
[374029868,1753187456542,-151.0,0.0002532,7]
[374029871,1753187456554,-220.939032,0.0002532,7]
[374029873,1753187456564,-161.138851,0.0002532,7]
[374029875,1753187456574,-200.0,0.00025321,30]
[374029877,1753187456583,-200.0,0.00025321,30]
[374029879,1753187456593,-368.76788491,0.00025321,2]
[374029881,1753187456602,-212642.9705134,0.00025321,20]
[374029883,1753187456611,-819355.3373233,0.00025321,20]
[374029885,1753187456620,-183.12730698,0.00025321,7]
[374029886,1753187456630,-277576.28081981,0.00025321,20]
[374029888,1753187456640,-359574.87671461,0.00025321,20]
[374029890,1753187456651,-583086.16296242,0.00025321,20]
[374029892,1753187456661,-975584.78053535,0.00025321,20]
[374032539,1753187499359,-218.23791531,0.00016926,2]
[374032540,1753187502239,-286.47047874,0.00016926,2]
[374032541,1753187504368,-294.16744271,0.00016926,2]
[374032542,1753187506705,-331.98305426,0.00016926,2]
[374032543,1753187511346,-233.87256413,0.00016926,2]
[374032544,1753187512935,-224.71562936,0.00016926,2]
[374032545,1753187515472,-412.78728258,0.00016926,2]
[374032546,1753187518132,-165.47212276,0.00016926,2]
[374032547,1753187520267,-190.12476215,0.00016926,2]
[374032549,1753187544346,-337.80611606,0.00016916,3]
[374032550,1753187547009,-164.82656904,0.00016916,3]
[374032551,1753187552427,-219.27381,0.00016916,3]
[374032552,1753187554593,-111.5335049,0.00016916,3]
[374032553,1753187554617,-64.72348212,0.00016916,3]
[374032554,1753187556222,-166.39193604,0.00016916,3]
[374032555,1753187558942,-185.60458184,0.00016916,3]
[374032556,1753187558964,-13.89960498,0.00016925,2]
[374032557,1753187560486,-190.0132961,0.00016925,2]
[374032558,1753187564738,-96.08709892,0.00016925,2]
[374032559,1753187564762,-401.56968584,0.00016926,2]
[374032560,1753187567310,-208.36,0.00016916,3]
[374032561,1753187567333,-9.87364562,0.00016926,2]
[374032562,1753187572805,-153.33833505,0.00016925,2]
[374032563,1753187574354,-279.78063236,0.00016925,2]
[374032564,1753187577696,-155.0,0.00016916,3]
[374032565,1753187579253,-42.16,0.00016916,3]
[374032566,1753187579277,-66.88103259,0.00016925,2]
[374032567,1753187579300,-309.39629659,0.00016925,2]
[374032568,1753187581320,-190.60370341,0.00016925,2]
[374032569,1753187581343,-118.79259318,0.00016925,2]
[374032570,1753187584360,-280.0,0.00016924,2]
[374032571,1753187584383,-47.1536181,0.00016925,2]
[374032572,1753187588790,-169.01143639,0.00016916,3]
[374032573,1753187590872,-217.04327278,0.00016916,3]
[374032574,1753187593014,-182.02067733,0.00016916,3]
[374032575,1753187596295,-23.4246135,0.00016916,3]
[374032576,1753187596317,-243.83345021,0.00016925,2]
[374032577,1753187599734,-159.05619583,0.00016925,2]
[374032578,1753187601805,-57.11035396,0.00016925,2]
[374032579,1753187601826,-175.85650095,0.00016925,2]
[374032580,1753187605500,-160.91024163,0.00016925,2]
[374032581,1753187607781,-123.23325742,0.00016925,2]
[374032582,1753187607803,-369.18081846,0.00016925,2]
[374032583,1753187610427,-90.81918154,0.00016925,2]
[374032584,1753187610451,-159.64571016,0.00016925,2]
[374032585,1753187612254,-174.40807856,0.00016925,2]
[374032586,1753187612277,-75.12702974,0.00016925,2]
[374032587,1753187614476,-274.87297026,0.00016925,2]
[374032588,1753187614500,-61.19923176,0.00016925,2]
[374032589,1753187617749,-233.12358677,0.00016925,2]
[374032590,1753187619301,-205.67718147,0.00016925,2]
[374032591,1753187619324,-166.22870402,0.00016925,2]
[374032592,1753187626011,-290.5354262,0.00016925,2]
[374032593,1753187628250,-154.83826796,0.00016925,2]
[374032594,1753187632116,-259.20685868,0.00016925,2]
[374032595,1753187635477,-266.6422764,0.00016925,2]
[374032596,1753187637151,-200.78370811,0.00016925,2]
[374032597,1753187641643,-286.41556921,0.00016925,2]
[374032598,1753187643444,-157.81306085,0.00016925,2]
[374032599,1753187652519,-325.91184552,0.00016923,2]
[374032600,1753187654782,-271.69142003,0.00016923,2]
[374032601,1753187658258,-191.00227654,0.00016923,2]
[374032602,1753187661682,-271.13250204,0.00016923,2]
[374032603,1753187669148,-295.86783231,0.00016923,2]
[374032604,1753187670754,-133.32050481,0.00016923,2]
[374032605,1753187670779,-112.19195005,0.00016924,2]
[374032606,1753187676142,-187.80804995,0.00016924,2]
[374032607,1753187676164,-85.79055562,0.00016925,2]
[374032608,1753187679727,-289.12302325,0.00016925,2]
[374032609,1753187681980,-369.90025261,0.00016925,2]
[374032610,1753187685761,-230.09974739,0.00016925,2]
[374032611,1753187689057,-202.33542456,0.00016925,2]
[374032773,1753188054398,-202.39091256,0.00016825,2]
[374032774,1753188054424,-378.81241432,0.000169,2]
[374032775,1753188056039,-509.56922863,0.000169,2]
[374032776,1753188058660,-161.76375443,0.000169,2]
[374032777,1753188061418,-195.97562253,0.000169,2]
[374032778,1753188064355,-183.87644133,0.00016816,2]
[374032779,1753188064381,-20.53654301,0.000169,2]
[374032780,1753188064403,-8.31612156,0.00016916,3]
[374032781,1753188067034,-497.05819671,0.00016916,3]
[374032782,1753188067279,1252.53630994,0.0001677,2]
[374032783,1753188068764,-46.51568173,0.00016916,3]
[374032784,1753188068788,-110.45356712,0.00016916,3]
[374032785,1753188073137,-165.48643288,0.00016916,3]
[374032786,1753188073161,-171.20256215,0.00016916,3]
[374032787,1753188076120,-286.809708,0.00016916,3]
[374032788,1753188078355,-228.26791367,0.00016916,3]
[374032789,1753188080516,-141.58981618,0.00016916,3]
[374032790,1753188080537,-94.97231374,0.00016922,2]
[374032791,1753188084654,1007.80436915,0.0001677,2]
[374032792,1753188107078,-156.96924885,0.00016822,2]
[374032793,1753188107101,-143.03075115,0.00016922,2]
[374032794,1753188109126,-61.99693511,0.00016922,2]
[374032795,1753188109149,-233.25630283,0.00016922,2]
[374032796,1753188110842,-66.74369717,0.00016922,2]
[374032797,1753188110866,-108.14020925,0.00016922,2]
[374032798,1753188112434,-191.85979075,0.00016922,2]
[374032799,1753188112456,-26.43388068,0.00016922,2]
[374032800,1753188115571,-232.50048099,0.00016922,2]
[374032801,1753188116412,988.43081579,0.0001677,2]
[374032802,1753188130773,150.0,0.00013124,2]
[374032803,1753188131318,150.0,0.00014317,2]
[374032804,1753188131920,232.50048099,0.0001677,2]
[374032805,1753188159397,-41.06563833,0.00016922,2]
[374032806,1753188159427,-165.49723262,0.00016922,2]
[374032807,1753188189930,-376.33563105,0.00016922,2]
[374032808,1753188193293,-162.80364156,0.00016922,2]
[374032809,1753188195780,-3.36349477,0.00016922,2]
[374032810,1753188195803,-289.75511608,0.00016922,2]
[374032811,1753188198297,-152.0,0.00016922,2]
[374032812,1753188202227,-18.24488392,0.00016922,2]
[374032813,1753188202250,-300.609025,0.00016922,2]
[374032814,1753188204339,-159.390975,0.00016922,2]
[374032815,1753188204363,-104.41132303,0.00016922,2]
[374032816,1753188205986,-289.21266355,0.00016922,2]
[374032817,1753188209430,-67.7451124,0.00016922,2]
[374032818,1753188209452,-160.75857626,0.00016922,2]
[374032819,1753188211173,-176.85953272,0.00016922,2]
[374032820,1753188213853,-122.38189102,0.00016922,2]
[374032821,1753188213876,-85.18534119,0.00016923,2]
[374032822,1753188216703,-300.0,0.00016922,2]
[374032823,1753188218978,-162.33532036,0.00016922,2]
[374032824,1753188218999,-117.03600972,0.00016922,2]
[374032825,1753188221720,-177.44288539,0.00016922,2]
[374032826,1753188224333,-168.08944188,0.00016922,2]
[374032827,1753188224498,-88.91810036,0.00016923,2]
[374032828,1753188225944,-285.89655845,0.00016923,2]
[374032829,1753188225969,-84.19614717,0.00016923,2]
[374032830,1753188227729,-161.0,0.00016923,2]
[374032831,1753188229300,-217.8497034,0.00016923,2]
[374032832,1753188229324,-40.2253703,0.00016923,2]
[374032833,1753188230741,159.659643,0.00013699,2]
[374032835,1753188234407,-414.01480876,0.00016923,2]
[374032836,1753188238093,-328.18892647,0.00016922,2]
[374032837,1753188241481,-133.92630917,0.00016922,2]
[374032838,1753188241517,-5.75982094,0.00016923,2]
[374032839,1753188241539,-150.30347012,0.00016923,2]
[374032840,1753188244014,-182.88994265,0.00016923,2]
[374032841,1753188245590,-179.00637629,0.00016922,2]
[374032842,1753188249255,-120.99362371,0.00016922,2]
[374032843,1753188249277,-159.0970965,0.00016922,2]
[374032844,1753188252090,-224.10325438,0.00016922,2]
[374032845,1753188253235,743.56362784,0.0001677,2]
[374032846,1753188253871,-76.79964912,0.00016922,2]
[374032847,1753188253895,-126.80658723,0.00016923,2]
[374032848,1753188253917,-139.40986916,0.00016923,2]
[374032849,1753188259831,-231.21181741,0.00016923,2]
[374032851,1753188310001,-233.53502006,0.00016921,2]
[374032852,1753188312096,-66.46497994,0.00016921,2]
[374032853,1753188312120,-115.52502006,0.00016922,2]
[374032854,1753188314922,-275.10171653,0.00016922,2]
[374032855,1753188364680,-69.37326341,0.00016922,2]
[374032856,1753188364704,-131.4438068,0.00016922,2]
[374032857,1753188368663,-201.32219026,0.00016922,2]
[374032865,1753188421349,326.893162,0.00016414,2]
[374032866,1753188421720,345.61734532,0.00016415,2]
[374032867,1753188472496,185.661803,0.00016052,2]
[374033106,1753188631959,-275.94,0.00016913,3]
[374033108,1753188631969,-827.84,0.00016913,3]
[374033110,1753188631979,-48.9109855,0.00016921,2]
[374033178,1753188637862,-137.65666258,0.00016921,2]
[374033180,1753188637872,-460.0,0.00016921,2]
[374033182,1753188637882,-460.0,0.00016921,2]
[374033184,1753188637891,-460.0,0.00016921,2]
[374033186,1753188637900,-460.0,0.00016921,2]
[374033188,1753188637910,-460.0,0.00016921,2]
[374033189,1753188637921,-167.74789855,0.00016921,2]
[374033191,1753188637930,-460.0,0.00016921,2]
[374033193,1753188637940,-461.09644263,0.00016921,2]
[374033195,1753188637950,-460.0,0.00016921,2]
[374033197,1753188637962,-460.0,0.00016921,2]
[374033199,1753188637972,-460.0,0.00016921,2]
[374033201,1753188637981,-1005.86246764,0.00016922,2]
[374033203,1753188637990,-50000.0,0.00016922,2]
[374033205,1753188637999,-52.07848915,0.00016922,2]
[374033207,1753188638010,-460.0,0.00016922,2]
[374033209,1753188638019,-460.0,0.00016922,2]
[374033211,1753188638028,-460.0,0.00016922,2]
[374033213,1753188638038,-460.0,0.00016922,2]
[374033215,1753188638047,-460.0,0.00016922,2]
[374033217,1753188638057,-463.46793694,0.00016922,2]
[374033219,1753188638067,-460.0,0.00016922,2]
[374033221,1753188638077,-333.81598796,0.00016922,2]
[374033223,1753188638086,-399.75316439,0.00016922,2]
[374033225,1753188638097,-460.0,0.00016922,2]
[374033227,1753188638111,-460.0,0.00016922,2]
[374033229,1753188638121,-460.0,0.00016922,2]
[374033231,1753188638133,-460.0,0.00016922,2]
[374033233,1753188638143,-460.0,0.00016922,2]
[374033235,1753188638156,-460.0,0.00016922,2]
[374033238,1753188638166,-460.0,0.00016922,2]
[374033240,1753188638176,-460.0,0.00016922,2]
[374033241,1753188638186,-460.0,0.00016922,2]
[374033244,1753188638196,-460.0,0.00016922,2]
[374033246,1753188638206,-565.13,0.00016922,2]
[374033248,1753188638216,-461.21448132,0.00016922,2]
[374033250,1753188638227,-460.0,0.00016922,2]
[374033251,1753188638236,-395.43814678,0.00016922,2]
[374033253,1753188638246,-166.73359816,0.00016922,2]
[374033256,1753188638256,-463.61325076,0.00016922,2]
[374033258,1753188638265,-463.14535527,0.00016922,2]
[374033260,1753188638275,-470.0653688,0.00016922,2]
[374033262,1753188638284,-460.0,0.00016922,2]
[374033264,1753188638293,-460.0,0.00016922,2]
[374033266,1753188638302,-460.0,0.00016922,2]
[374033268,1753188638312,-460.0,0.00016922,2]
[374033270,1753188638322,-460.0,0.00016922,2]
[374033272,1753188638333,-460.0,0.00016922,2]
[374033274,1753188638343,-460.0,0.00016922,2]
[374033276,1753188638356,-522.45606352,0.00016922,2]
[374033278,1753188638365,-465.09400557,0.00016922,2]
[374033280,1753188638375,-460.0,0.00016922,2]
[374033282,1753188638384,-460.0,0.00016922,2]
[374033284,1753188638393,-505.2,0.00016922,2]
[374033286,1753188638402,-462.77754344,0.00016922,2]
[374033288,1753188638412,-460.0,0.00016922,2]
[374033290,1753188638421,-460.0,0.00016922,2]
[374033292,1753188638431,-461.7469938,0.00016922,2]
[374033294,1753188638440,-460.0,0.00016922,2]
[374033296,1753188638450,-460.0,0.00016922,2]
[374033298,1753188638460,-460.0,0.00016922,2]
[374033300,1753188638469,-368.44174212,0.00016922,2]
[374033302,1753188638479,-460.0,0.00016922,2]
[374033304,1753188638489,-460.0,0.00016922,2]
[374033306,1753188638499,-460.0,0.00016922,2]
[374033308,1753188638509,-460.0,0.00016922,2]
[374033310,1753188638518,-460.0,0.00016922,2]
[374033312,1753188638527,-460.0,0.00016922,2]
[374033314,1753188638537,-460.0,0.00016922,2]
[374033317,1753188638546,-548.86437709,0.00016922,2]
[374033318,1753188638555,-460.0,0.00016922,2]
[374033321,1753188638565,-460.0,0.00016922,2]
[374033322,1753188638575,-563.12216986,0.00016922,2]
[374033324,1753188638585,-461.37575409,0.00016922,2]
[374033327,1753188638594,-460.0,0.00016922,2]
[374033328,1753188638607,-460.0,0.00016922,2]
[374033331,1753188638617,-460.0,0.00016922,2]
[374033333,1753188638627,-460.0,0.00016922,2]
[374033335,1753188638636,-460.0,0.00016922,2]
[374033337,1753188638645,-460.0,0.00016922,2]
[374033339,1753188638654,-460.0,0.00016922,2]
[374033341,1753188638664,-460.0,0.00016922,2]
[374033342,1753188638673,-460.0,0.00016922,2]
[374033344,1753188638682,-460.0,0.00016922,2]
[374033346,1753188638692,-481.21309109,0.00016922,2]
[374033363,1753188638832,-460.0,0.00016922,2]
[374033365,1753188638842,-460.0,0.00016922,2]
[374033366,1753188638853,-460.0,0.00016922,2]
[374033368,1753188638863,-460.0,0.00016922,2]
[374033371,1753188638873,-460.0,0.00016922,2]
[374033372,1753188638883,-460.0,0.00016922,2]
[374033374,1753188638892,-460.0,0.00016922,2]
[374033377,1753188638902,-460.0,0.00016922,2]
[374033379,1753188638912,-460.0,0.00016922,2]
[374033381,1753188638922,-460.0,0.00016922,2]
[374033383,1753188638931,-460.0,0.00016922,2]
[374033385,1753188638940,-461.81938326,0.00016922,2]
[374033387,1753188638949,-460.0,0.00016922,2]
[374033389,1753188638960,-460.0,0.00016922,2]
[374033391,1753188638971,-460.0,0.00016922,2]
[374033393,1753188638980,-460.0,0.00016922,2]
[374033395,1753188638990,-460.0,0.00016922,2]
[374033397,1753188638999,-460.0,0.00016922,2]
[374033400,1753188639019,-325.61252337,0.00016922,2]
[374033402,1753188639031,-460.0,0.00016922,2]
[374033404,1753188639042,-460.0,0.00016922,2]
[374033406,1753188639053,-460.0,0.00016922,2]
[374033408,1753188639063,-462.33156711,0.00016922,2]
[374033410,1753188639074,-460.0,0.00016922,2]
[374033412,1753188639083,-460.0,0.00016922,2]
[374033414,1753188639094,-460.0,0.00016922,2]
[374033417,1753188639106,-462.37691092,0.00016922,2]
[374033419,1753188639116,-460.0,0.00016922,2]
[374033421,1753188639126,-461.42562307,0.00016922,2]
[374033423,1753188639136,-460.28317376,0.00016922,2]
[374033425,1753188639146,-460.0,0.00016922,2]
[374033427,1753188639156,-460.0,0.00016922,2]
[374033429,1753188639166,-466.22532893,0.00016922,2]
[374033431,1753188639176,-461.42526579,0.00016922,2]
[374033433,1753188639187,-460.0,0.00016922,2]
[374033435,1753188639197,-461.27603809,0.00016922,2]
[374033437,1753188639207,-89.37831343,0.00016923,2]
[374033439,1753188639217,-500.0,0.00016923,2]
[374033441,1753188639227,-460.0,0.00016923,2]
[374033444,1753188639238,-487.22409962,0.00016923,2]
[374033446,1753188639248,-460.0,0.00016923,2]
[374033448,1753188639259,-463.1547138,0.00016923,2]
[374033450,1753188639268,-460.0,0.00016923,2]
[374033452,1753188639277,-460.0,0.00016923,2]
[374033453,1753188639287,-460.0,0.00016923,2]
[374033455,1753188639297,-460.0,0.00016923,2]
[374033457,1753188639307,-460.0,0.00016923,2]
[374033459,1753188639316,-525.48641473,0.00016923,2]
[374033461,1753188639326,-460.0,0.00016923,2]
[374033463,1753188639336,-460.0,0.00016923,2]
[374033465,1753188639345,-460.0,0.00016923,2]
[374033466,1753188639357,-460.0,0.00016923,2]
[374033467,1753188639367,-460.0,0.00016923,2]
[374033468,1753188639376,-460.0,0.00016923,2]
[374033469,1753188639386,-460.0,0.00016923,2]
[374033470,1753188639396,-460.0,0.00016923,2]
[374033472,1753188639406,-460.0,0.00016923,2]
[374033473,1753188639416,-460.0,0.00016923,2]
[374033475,1753188639426,-460.0,0.00016923,2]
[374033477,1753188639435,-462.07952192,0.00016923,2]
[374033479,1753188639445,-460.0,0.00016923,2]
[374033480,1753188639454,-460.0,0.00016923,2]
[374033481,1753188639463,-460.0,0.00016923,2]
[374033482,1753188639473,-500.0,0.00016923,2]
[374033483,1753188639483,-460.0,0.00016923,2]
[374033484,1753188639492,-460.0,0.00016923,2]
[374033485,1753188639502,-460.0,0.00016923,2]
[374033486,1753188639512,-460.0,0.00016923,2]
[374033488,1753188639522,-460.0,0.00016923,2]
[374033490,1753188639531,-460.0,0.00016923,2]
[374033491,1753188639542,-460.0,0.00016923,2]
[374033492,1753188639551,-460.0,0.00016923,2]
[374033493,1753188639561,-460.0,0.00016923,2]
[374033494,1753188639571,-460.0,0.00016923,2]
[374033495,1753188639580,-460.0,0.00016923,2]
[374033496,1753188639590,-460.0,0.00016923,2]
[374033497,1753188639599,-460.0,0.00016923,2]
[374033498,1753188639609,-460.0,0.00016923,2]
[374033499,1753188639619,-460.0,0.00016923,2]
[374033500,1753188639628,-460.0,0.00016923,2]
[374033501,1753188639642,-460.0,0.00016923,2]
[374033502,1753188639652,-460.0,0.00016923,2]
[374033503,1753188639662,-460.0,0.00016923,2]
[374033504,1753188639672,-460.0,0.00016923,2]
[374033505,1753188639682,-460.0,0.00016923,2]
[374033506,1753188639692,-460.0,0.00016923,2]
[374033507,1753188639702,-460.0,0.00016923,2]
[374033508,1753188639712,-460.0,0.00016923,2]
[374033509,1753188639722,-460.0,0.00016923,2]
[374033510,1753188639731,-460.0,0.00016923,2]
[374033511,1753188639741,-460.0,0.00016923,2]
[374033512,1753188639751,-460.0,0.00016923,2]
[374033513,1753188639760,-460.0,0.00016923,2]
[374033514,1753188639771,-460.0,0.00016923,2]
[374033515,1753188639780,-460.92902991,0.00016923,2]
[374033516,1753188639790,-460.0,0.00016923,2]
[374033517,1753188639799,-460.0,0.00016923,2]
[374033518,1753188639809,-279.83272395,0.00016923,2]
[374033519,1753188639818,-460.0,0.00016923,2]
[374033520,1753188639828,-460.0,0.00016923,2]
[374033521,1753188639838,-460.0,0.00016923,2]
[374033522,1753188639849,-460.0,0.00016923,2]
[374033523,1753188639858,-460.0,0.00016923,2]
[374033524,1753188639868,-460.0,0.00016923,2]
[374033525,1753188639877,-460.0,0.00016923,2]
[374033527,1753188639887,-460.0,0.00016923,2]
[374033529,1753188639896,-460.0,0.00016923,2]
[374033531,1753188639906,-460.0,0.00016923,2]
[374033533,1753188639915,-460.0,0.00016923,2]
[374033535,1753188639924,-460.0,0.00016923,2]
[374033537,1753188639934,-460.0,0.00016923,2]
[374033539,1753188639944,-460.0,0.00016923,2]
[374033541,1753188639953,-460.0,0.00016923,2]
[374033543,1753188639965,-460.0,0.00016923,2]
[374033545,1753188639975,-460.0,0.00016923,2]
[374033547,1753188639984,-460.0,0.00016923,2]
[374033549,1753188639994,-460.0,0.00016923,2]
[374033550,1753188640003,-460.0,0.00016923,2]
[374033551,1753188640013,-460.0,0.00016923,2]
[374033552,1753188640023,-466.01776952,0.00016923,2]
[374033553,1753188640032,-460.0,0.00016923,2]
[374033554,1753188640042,-460.0,0.00016923,2]
[374033555,1753188640052,-460.0,0.00016923,2]
[374033556,1753188640061,-460.0,0.00016923,2]
[374033557,1753188640071,-460.0,0.00016923,2]
[374033558,1753188640081,-460.0,0.00016923,2]
[374033559,1753188640090,-460.0,0.00016923,2]
[374033560,1753188640100,-460.0,0.00016923,2]
[374033561,1753188640110,-460.0,0.00016923,2]
[374033562,1753188640119,-460.0,0.00016923,2]
[374033563,1753188640129,-460.0,0.00016923,2]
[374033564,1753188640139,-188.62903208,0.00016923,2]
[374033565,1753188640148,-460.0,0.00016923,2]
[374033566,1753188640157,-460.0,0.00016923,2]
[374033567,1753188640167,-460.0,0.00016923,2]
[374033568,1753188640176,-460.0,0.00016923,2]
[374033569,1753188640186,-460.0,0.00016923,2]
[374033570,1753188640195,-460.0,0.00016923,2]
[374033571,1753188640205,-460.0,0.00016923,2]
[374033572,1753188640215,-460.0,0.00016923,2]
[374033573,1753188640226,-460.0,0.00016923,2]
[374033575,1753188640236,-460.0,0.00016923,2]
[374033577,1753188640247,-460.0,0.00016923,2]
[374033579,1753188640257,-460.0,0.00016923,2]
[374033581,1753188640269,-460.0,0.00016923,2]
[374033584,1753188640280,-460.0,0.00016923,2]
[374033586,1753188640290,-460.0,0.00016923,2]
[374033588,1753188640300,-460.0,0.00016923,2]
[374033590,1753188640310,-460.0,0.00016923,2]
[374033592,1753188640319,-460.0,0.00016923,2]
[374033594,1753188640329,-502.83212468,0.00016923,2]
[374033596,1753188640339,-460.0,0.00016923,2]
[374033598,1753188640351,-155.0,0.00016923,2]
[374033600,1753188640361,-460.0,0.00016923,2]
[374033602,1753188640371,-460.0,0.00016923,2]
[374033604,1753188640381,-461.28985009,0.00016923,2]
[374033606,1753188640392,-460.0,0.00016923,2]
[374033608,1753188640402,-460.0,0.00016923,2]
[374033610,1753188640412,-460.0,0.00016923,2]
[374033612,1753188640423,-460.0,0.00016923,2]
[374033614,1753188640434,-460.0,0.00016923,2]
[374033616,1753188640446,-460.0,0.00016923,2]
[374033618,1753188640458,-460.0,0.00016923,2]
[374033620,1753188640468,-460.0,0.00016923,2]
[374033622,1753188640479,-460.0,0.00016923,2]
[374033624,1753188640489,-370.18527589,0.00016923,2]
[374033626,1753188640500,-460.0,0.00016923,2]
[374033628,1753188640511,-460.0,0.00016923,2]
[374033630,1753188640520,-460.0,0.00016923,2]
[374033632,1753188640531,-460.0,0.00016924,2]
[374033634,1753188640542,-222.56004676,0.00016924,2]
[374033636,1753188640552,-460.0,0.00016924,2]
[374033638,1753188640561,-460.0,0.00016924,2]
[374033640,1753188640572,-271.0987992,0.00016924,2]
[374033642,1753188640582,-460.0,0.00016924,2]
[374033644,1753188640591,-460.0,0.00016924,2]
[374033646,1753188640604,-461.81768093,0.00016924,2]
[374033648,1753188640614,-460.0,0.00016924,2]
[374033650,1753188640624,-461.33540399,0.00016924,2]
[374033653,1753188640633,-460.86123674,0.00016924,2]
[374033654,1753188640643,-460.0,0.00016924,2]
[374033657,1753188640652,-1000.0,0.00016924,2]
[374033659,1753188640661,-461.07185386,0.00016924,2]
[374033661,1753188640671,-500.0,0.00016924,2]
[374033663,1753188640680,-500.0,0.00016924,2]
[374033665,1753188640690,-460.0,0.00016924,2]
[374033667,1753188640699,-460.0,0.00016924,2]
[374033669,1753188640709,-1103.13,0.00016924,2]
[374033671,1753188640719,-168.82454538,0.00016924,2]
[374033673,1753188640728,-460.0,0.00016924,2]
[374033675,1753188640738,-460.0,0.00016924,2]
[374033677,1753188640747,-460.0,0.00016924,2]
[374033679,1753188640757,-490.09,0.00016924,2]
[374033681,1753188640766,-460.0,0.00016924,2]
[374033683,1753188640776,-460.0,0.00016924,2]
[374033685,1753188640785,-992.6175875,0.00016924,2]
[374033687,1753188640795,-460.0,0.00016924,2]
[374033689,1753188640804,-460.0,0.00016924,2]
[374033691,1753188640814,-851.39002613,0.00016924,2]
[374033693,1753188640823,-460.0,0.00016924,2]
[374033695,1753188640832,-460.0,0.00016924,2]
[374033697,1753188640841,-460.0,0.00016924,2]
[374033699,1753188640852,-460.0,0.00016924,2]
[374033701,1753188640861,-460.0,0.00016924,2]
[374033703,1753188640870,-460.0,0.00016924,2]
[374033705,1753188640880,-460.0,0.00016924,2]
[374033707,1753188640889,-460.0,0.00016924,2]
[374033709,1753188640900,-460.0,0.00016924,2]
[374033711,1753188640910,-460.0,0.00016924,2]
[374033713,1753188640919,-460.0,0.00016924,2]
[374033715,1753188640929,-1181.98,0.00016924,2]
[374033717,1753188640938,-460.0,0.00016924,2]
[374033719,1753188640947,-500.0,0.00016925,2]
[374033721,1753188640958,-460.0,0.00016925,2]
[374033723,1753188640972,-460.37589623,0.00016925,2]
[374033725,1753188640982,-460.0,0.00016925,2]
[374033727,1753188640991,-460.0,0.00016925,2]
[374033729,1753188641001,-500.0,0.00016925,2]
[374033731,1753188641011,-500.0,0.00016925,2]
[374033733,1753188641020,-500.0,0.00016925,2]
[374033736,1753188641030,-500.0,0.00016925,2]
[374033738,1753188641049,-510.22511618,0.00016925,2]
[374033741,1753188641059,-367230.72541654,0.00016926,2]
[374033743,1753188641069,-259.96485132,0.00017024,2]
[374033745,1753188641079,-460.0,0.00017024,2]
[374033747,1753188641089,-460.73221315,0.00017024,2]
[374033749,1753188641098,-461.10079098,0.00017024,2]
[374033751,1753188641109,-460.0,0.00017024,2]
[374033753,1753188641118,-460.0,0.00017024,2]
[374033755,1753188641128,-460.0,0.00017024,2]